Cogmind - Beta 16.1 @@@ ROGUE MODE // 2026.03.20 @ 22:27:09 // Winter2019/RPGLIKE Player: john Result: Destroyed by Y-45 Defender with Beam Rifle Performance ------------- Evolutions (1) 500 Regions Visited (2) 400 Robots Destroyed (6) 30 Value Destroyed (198) 198 Prototype IDs (0) 0 Alien Tech Used (0) 0 Bonus (1055) 1055 TOTAL SCORE: 2183 Bonus ------- Triggered Max Security 1000 High Alert Combat Kills 55 Cogmind --------- Core Integrity 0/1050 Matter 246/300 Energy 100/100 System Corruption 0% Temperature Cool (18) Movement Walking (120) Location -9/Materials Parts ------- > --- POWER (1) -------- (None) > --- PROPULSION (2) --- Aluminum Leg Aluminum Leg > --- UTILITY (2) ------ (None) > --- WEAPON (2) ------- Heavy Assault Rifle Heavy Hammer > --- INVENTORY (2) ---- Light Assault Rifle Peak State ------------ > --- POWER ------------ Light Ion Engine > --- PROPULSION ------- Aluminum Leg Aluminum Leg > --- UTILITY ---------- Improved Terrain Scanner > --- WEAPON ----------- Heavy Assault Rifle Heavy Assault Rifle > --- INVENTORY -------- Light Assault Rifle [Rating: 10] Favorites ----------- Power Light Ion Engine Engine Light Ion Engine Propulsion Aluminum Leg Leg Aluminum Leg Utility Improved Terrain Scanner Device Improved Terrain Scanner Weapon Light Assault Rifle Ballistic Gun Light Assault Rifle Impact Weapon Heavy Hammer Build | -11 -10 -9 ------- Run | Yrd Mat Mat Slots Evolved 3 | 3 . . Power . | . . . Propulsion 1 | 1 . . Utility 1 | 1 . . Weapon 1 | 1 . . Parts Attached 8 | 5 2 1 Power 1 | 1 . . Engine 1 | 1 . . Core . | . . . Reactor . | . . . Propulsion 2 | 2 . . Treads . | . . . Leg 2 | 2 . . Wheel . | . . . Hover . | . . . Flight . | . . . Utility 1 | 1 . . Device 1 | 1 . . Storage . | . . . Processor . | . . . Hackware . | . . . Protection . | . . . Artifact . | . . . Weapon 4 | 1 2 1 Energy Gun . | . . . Energy Cannon . | . . . Ballistic Gun 3 | 1 2 . Ballistic Cannon . | . . . Launcher . | . . . Special Weapon . | . . . Impact Weapon 1 | . . 1 Slashing Weapon . | . . . Piercing Weapon . | . . . Special Melee Weapon . | . . . Unidentified Prototypes . | . . . Parts Lost 2 | . . 2 Power 1 | . . 1 Propulsion . | . . . Utility 1 | . . 1 Weapon . | . . . Highest Loss Streak 1 | . . 1 To Critical Strikes . | . . . Average Backups . | . . 1 Power . | . . . Propulsion . | . . . Utility . | . . . Weapon . | . . 1 Tool/Special . | . . . Unused Backups . | . . . Power . | . . . Propulsion . | . . . Utility . | . . . Weapon . | . . . Tool/Special . | . . . Average Slot Usage (%) 82 | . 84 81 Engine 14 | . 14 14 Leg 28 | . 28 28 Device 11 | . 14 10 Ballistic Gun 24 | . 27 22 Impact Weapon 3 | . . 5 Peak Build Rating 10 | 7 10 10 Average Rating 5 | 3 9 9 On Entrance 5 | . 7 10 Avg Prop Armor Cover (%) . | . . . Naked Turns . | . . . Heaviest Build 10 | 5 10 10 Greatest Support 25 | 25 25 25 Greatest Overweight (x) . | . . . Average Overweight (x) . | . . . Largest Inventory Capacity 2 | 2 2 2 Average Capacity 1 | 1 2 2 Most Carried 1 | . 1 1 Average Carried . | . . 1 Final Capacity 2 | 2 2 2 Final Carried 1 | . 1 1 Class Distribution -------------------- 97% | Mutant Dominant Class ---------------- Mutant | -10/Materials Mutant | -9/Materials Resources | -11 -10 -9 ----------- Run | Yrd Mat Mat Matter Collected 341 | 104 . 237 Remotely . | . . . Salvage Created 230 | . 21 209 Parts 15 | 2 1 12 Haulers Intercepted . | . . . Recyclers Shooed . | . . . Parts Field Recycled . | . . . Retrieved Matter . | . . . Parts Self-Destructed . | . . . Prevented . | . . . Parts Restored . | . . . Kills | -11 -10 -9 ------- Run | Yrd Mat Mat Combat Hostiles Destroyed 5 | 1 . 4 Guns 4 | 1 . 3 Classes Destroyed 5 | 1 1 3 Worker 1 | . 1 . Swarmer 1 | . . 1 Grunt 1 | . . 1 Sentry 2 | . . 2 Demolisher 1 | 1 . . Best Kill Streak 2 | 1 1 2 Combat Bots Only 2 | 1 . 2 Max Kills in Single Turn 1 | 1 1 1 Gunslinging . | . . . Exploded . | . . . Melee . | . . . Uniques/NPCs Destroyed . | . . . Combat | -11 -10 -9 -------- Run | Yrd Mat Mat Hostile Shots Fired 97 | 6 . 91 Missed 20 | . . 20 Hits 77 | 6 . 71 Projectile 77 | 6 . 71 AOE 6 | 6 . . Critical Strikes 2 | . . 2 Damage Taken 1267 | 217 . 1050 Core 1055 | 198 . 857 Absorbed by Shields . | . . . Redirected to Core 748 | 69 . 679 Ignored by Resistances 86 | 15 . 71 Core Remaining (%) 67 | 67 67 . Volleys Fired 27 | 3 14 10 Largest 2 | 1 2 2 Hottest 46 | 20 46 46 Shots Fired 45 | 3 28 14 Gun 45 | 3 28 14 Cannon . | . . . Launcher . | . . . Special . | . . . Kinetic 45 | 3 28 14 Thermal . | . . . Explosive . | . . . Electromagnetic . | . . . Robot Hit Streak 4 | 3 1 4 Robot Miss Streak 2 | . 2 1 Penetration Max . | . . . Secondary Targets 1 | . . 1 Max Gunslinging Chain 1 | . . 1 Shots Hit Robots 17 | 3 1 13 Core Hits 8 | 2 2 4 Critical Kills . | . . . Critical Parts Destroyed . | . . . Critical Strikes . | . . . Melee Attacks 9 | . . 9 Impact 9 | . . 9 Slashing . | . . . Piercing . | . . . Sneak Attacks . | . . . Combat Hostiles . | . . . Follow-up Attacks . | . . . Damage Inflicted 647 | 75 38 534 Guns 480 | 75 36 369 Cannons . | . . . Explosions . | . . . Melee 165 | . . 165 Ramming 2 | . 2 . Kinetic 480 | 75 36 369 Thermal . | . . . Explosive . | . . . Electromagnetic . | . . . Impact 165 | . . 165 Slashing . | . . . Piercing . | . . . Highest Corruption . | . . . Average Corruption . | . . . Corruption Purged . | . . . Corruption Blocked . | . . . Overload Shots . | . . . Overflow Damage 36 | . . 36 Projectiles . | . . . Explosions . | . . . Melee 36 | . . 36 Knockbacks 1 | . . 1 Impact 1 | . . 1 Kinetic . | . . . Secondary . | . . . Self-Inflicted Damage . | . . . Shots . | . . . Rammed . | . . . Targets Rammed 1 | . 1 . Kicked 1 | . 1 . Crushed . | . . . Highest Temperature 16 | . . 16 Average Temperature 7 | . . 7 Received Heat Transfer 285 | . . 285 Thermoelectric Energy+ 2 | . . 2 Siege Activations . | . . . Martial Activations . | . . . Shielding Activations . | . . . Robots Disrupted . | . . . Combat Hostiles . | . . . Robots Corrupted 1 | . . 1 Combat Hostiles 1 | . . 1 Parts Fried . | . . . Impact Corruptions 1 | . . 1 Robots Melted . | . . . Combat Hostiles . | . . . Parts Melted . | . . . Heat Transferred . | . . . Parts Sabotaged . | . . . Parts Stolen . | . . . Parts Stripped . | . . . Power Chain Reactions . | . . . Alert | -11 -10 -9 ------- Run | Yrd Mat Mat Maximum Alert Level 5 | . . 5 Low Security (%) 94 | 100 100 58 Level 1 . | . . . Level 2 . | . . . Level 3 . | . . . Level 4 . | . . . Level 5 . | . . . High Security . | . . . Max Security 5 | . . 41 Peak Influence 1659 | 30 16 1659 Initial 16 | . 16 . Average 90 | . 3 694 Influence Increases 170 | 30 18 122 Destroy 0b10 Robot/C 100 | 20 . 80 Destroy 0b10 Robot/NC 5 | . 5 . Destroy Leader 30 | 10 . 20 Disable Machine 15 | . . 15 Destroy Structure 20 | . 13 7 Influence Decreases 88 | 4 44 40 Entered New Map 10 | . 10 . Time Decay 58 | 4 34 20 Lost Part 20 | . . 20 Squads Dispatched 6 | . . 6 Investigation . | . . . Extermination . | . . . Reinforcement . | . . . Assault 6 | . . 6 Garrison . | . . . Intercept . | . . . Searches Triggered . | . . . Construction Impeded . | . . . Haulers Reinforced . | . . . Active Scanning Responses . | . . . Cargo Convoy Interrupts . | . . . Stealth | -11 -10 -9 --------- Run | Yrd Mat Mat Distress Signals 2 | . . 2 Communications Jammed . | . . . Distress Signals . | . . . Times Spotted 16 | 2 1 13 Peak Tracking Total 7 | 2 2 7 Tactical Retreats . | . . . Traps | -11 -10 -9 ------- Run | Yrd Mat Mat Traps Triggered . | . . . Indirectly . | . . . Trap Hack Attempts . | . . . Triggered . | . . . Disarmed . | . . . Reprogrammed . | . . . Reused . | . . . Traps Extracted . | . . . Installed . | . . . Triggered . | . . . Machines | -11 -10 -9 ---------- Run | Yrd Mat Mat Machines Disabled 1 | . . 1 Max in Single Turn 1 | . . 1 Machines Repaired . | . . . Machines Dismantled . | . . . Machines Sabotaged . | . . . Overloaded Fab Kills . | . . . Hacking | -11 -10 -9 --------- Run | Yrd Mat Mat Machines Accessed . | . . . Terminals . | . . . Fabricators . | . . . Repair Stations . | . . . Recycling Units . | . . . Scanalyzers . | . . . Garrison Access . | . . . Total Hacks . | . . . Successful . | . . . Failed . | . . . Catastrophic . | . . . Database Lockouts . | . . . Manual . | . . . Terminals . | . . . Fabricators . | . . . Repair Stations . | . . . Recycling Units . | . . . Scanalyzers . | . . . Garrison Access . | . . . Terminal Hacks . | . . . Fabricator Hacks . | . . . Repair Station Hacks . | . . . Recycling Unit Hacks . | . . . Scanalyzer . | . . . Garrison Access Hacks . | . . . Unauthorized Hacks . | . . . Terminals . | . . . Fabricators . | . . . Repair Stations . | . . . Recycling Units . | . . . Scanalyzers . | . . . Garrison Access . | . . . Data Cores Recovered . | . . . Used . | . . . Hacking Detections . | . . . Full Trace Events . | . . . Feedback Events . | . . . Feedback Blocked . | . . . Robot Schematics Acquired . | . . . Robots Built . | . . . Authchips . | . . . Time . | . . . Total Robot Build Rating . | . . . Part Schematics Acquired . | . . . Parts Built . | . . . Authchips . | . . . Time . | . . . Total Part Build Rating . | . . . Part Studies Acquired . | . . . Parts Repaired . | . . . Time . | . . . Parts Recycled . | . . . Recycled Matter . | . . . Retrieved Matter . | . . . Retrieved Components . | . . . Parts Scanalyzed . | . . . Part Schematics Acquired . | . . . Parts Damaged . | . . . Bothacking | -11 -10 -9 ------------ Run | Yrd Mat Mat Used RIF Installer . | . . . Robots Hacked . | . . . Non-combat . | . . . Combat . | . . . Robot Hacks Applied . | . . . Relay Couplers Released . | . . . Fabnet Peak Effective % . | . . . Robots Rewired . | . . . Allies Hacked . | . . . Hacks Repelled . | . . . Allies | -11 -10 -9 -------- Run | Yrd Mat Mat Total Allies . | . . . Largest Group . | . . . Highest-Rated Group . | . . . Highest-Rated Ally . | . . . Total Orders . | . . . Ally Attacks . | . . . Total Damage . | . . . Kills . | . . . Allies Corrupted . | . . . Allies Melted . | . . . Intel | -11 -10 -9 ------- Run | Yrd Mat Mat Active Infowar (turns) 340 | 7 163 170 Terrain 340 | 7 163 170 Robot Analysis Total . | . . . Derelict Logs Recovered . | . . . Drone Launches . | . . . Drone Recoveries . | . . . Exploration | -11 -10 -9 ------------- Run | Yrd Mat Mat Turns Passed 1832 | 1432 163 237 Spaces Moved 281 | 31 98 152 Core 4 | 4 . . Treads . | . . . Legs 277 | 27 98 152 Wheels . | . . . Hover . | . . . Flight . | . . . Fastest Speed 50 | 50 120 120 Average Speed 119 | 110 120 120 Slowest Speed 120 | 120 120 120 Overloaded Moves . | . . . Propulsion Burnouts . | . . . Robots Hopped . | . . . Potential Cave-ins . | . . . Cave-ins Triggered 1 | . . 1 Teleports 3 | . . 3 Exploration Rate (%) 22 | 6 27 34 Regions Visited 2 Branch Regions . Pre-discovered Areas . | . . . Known Exits Taken . | . . . Unknown Exits Taken 2 | 1 1 . Scrap Searched . | . . . Spaces Dug 12 | . 8 4 Terrain Destroyed 35 | . 27 8 Melee 4 | . . 4 Projectile 31 | . 27 4 AOE . | . . . Terrain Rammed . | . . . Walls Destroyed . | . . . Machines Disabled . | . . . Actions | -11 -10 -9 --------- Run | Yrd Mat Mat Total 1714 | 1423 114 177 Wait 1390 | 1385 . 5 Move 279 | 30 97 152 Hop . | . . . Pick Up . | . . . Fast Attach 6 | 5 1 . Attach . | . . . Detach . | . . . Swap 2 | . 1 1 Drop . | . . . Fire 27 | 3 14 10 Melee 9 | . . 9 Ram . | . . . Kick 1 | . 1 . Crush . | . . . Escape Stasis . | . . . Rewire . | . . . Trap . | . . . Miscellaneous . | . . . Route ------- -11/Scrapyard -10/Materials -9/Materials (discovered 1 exit: [*Mat]) History --------- Turn | Location | Event 3 | -11/Scrapyard | Upgraded with Propulsion slot (x1) 3 | -11/Scrapyard | Upgraded with Utility slot (x1) 3 | -11/Scrapyard | Upgraded with Weapon slot (x1) 5 | -11/Scrapyard | Discovered new exit (range 16) 1416 | -11/Scrapyard | Assembled infested the area 1433 | -11/Scrapyard | Entered Materials 1462 | -10/Materials | Build established: Mutant 1578 | -10/Materials | Discovered new exit (range 16) 1596 | -10/Materials | Entered another Materials area 1598 | -9/Materials | Reached level 2 1766 | -9/Materials | Crushed by falling debris 1808 | -9/Materials | Discovered new exit (range 9) 1811 | -9/Materials | Core integrity fell below 50% 1826 | -9/Materials | Core integrity fell below 20% 1833 | -9/Materials | Destroyed by Y-45 Defender with Beam Rifle Last Messages --------------- 01766_ The unstable cave ceiling collapses. 01766_ Crushed by falling debris. 01766_ Imp. Terrain Scanner destroyed. 01766_ Core Membrane filtered system corruption (4). 01767_ W-16 Scout sends out distress signal. 01778_ Navigation matrix triggers involuntary quantum shift. 01808_ EXIT=FOUND 01812_ Critical hit (Burn: +37). 01812_ Destroyed Flight Unit. 01812_ S-10 Pest system corrupted by crushing effect. 01812_ S-10 Pest knocked back. 01813_ S-10 Pest system terminally corrupted. 01821_ K-01 Serf exits level. 01823_ S-10 Pest destroyed. 01824_ Critical hit (Burn: +37). 01824_ K-01 Serf exits level. 01826_ U-05 Engineer exits level. 01832_ K-01 Serf exits level. 01833_ Lgt. Ion Engine destroyed. Map ----- +----------------------------------------------------+ | | | | | | | | | | | | | | | ????????????????????????????????? | | ????????????????????????????????? | | ????????????????????????????????? | | ????????????????????????????????? | | ????????????????????????????????? | | ????????????????????????????????? | | ????????????????????????????????? | | ????????????????????????????????? | | ????????????????????????????????? | | ????????????????????????????????? | | ????????????????????????????????? | | ????????????????????????????????? | | ????????????????????????????????? | | ???????????????######???????????? | | ???????????????? ?#####????? | | ????????????????""" ?# #????? | | ????????????????""" # < #????? | | ??????????????# """ #YYY#????? | | #?????????????# Y @^#????? | | #?????????????# """ # k #????? | | #???????????????"""????# % #????? | | ##?????????????????????#s=%#????? | | ##?????????????????????# *#????? | | ##??????????????######## #????? | | ""??????????????# # #????? | | "T??????????????# /r #????? | | ?????????????# ==[ # #????? | | ??????????????# =[ # #????? | | ??????????????# =[ #a #????? | | ??????????????# # #????? | | ??????????????######## #????? | | ?????????????????????# #????? | | ??????????????????????# #????? | | #??????????????????????# #????? | | ??????????????????????# #????? | | ???????????????????????# #????? | | ???????????????????????? #????? | | ???????????????????????? #????? | | ???????????????????????? #????? | | ???????????????????????? ?????? | | ????????????????????????????????? | | ????????????????????????????????? | | ????????????????????????????????? | +----------------------------------------------------+ Best States ------------- Heat Dissipation 25 Energy Generation 10 Energy Capacity 125 Matter Stores 288 Matter Capacity 300 Sight Range 16 Robot Scan Range 16 Terrain Scan Range 16 Terrain Scan Density 10 Resistance: KI 5 Resistance: TH 5 Resistance: EX 5 Evasion (%) 55 Offensive Hacking 5 Defensive Hacking 6 Item Schematics ----------------- None Robot Schematics ------------------ None Fabricated ------------ Nothing Repaired ---------- Nothing Studied --------- None Alien Tech Used ----------------- None Achievements -------------- Hornet's Nest Part-time Excavator Challenges ------------ None RPGLIKE | -11 -10 -9 --------- Run | Yrd Mat Mat Levels Raised 1 | . . 1 XP Earned 5752 | 3150 . 2602 XP Spent 4485 | 2925 . 1560 Upgrades 26 | 11 . 15 Propulsion Slot 1 | 1 . . Utility Slot 1 | 1 . . Weapon Slot 1 | 1 . . Core Integrity 9 | . . 9 Mass Support 1 | 1 . . Inventory Capacity 2 | 2 . . Sensor Range 8 | 2 . 6 KI Resistance % 1 | 1 . . TH Resistance % 1 | 1 . . EX Resistance % 1 | 1 . . Protomatter Created 15 | 7 . 8 Protomatter Decayed . | . . . Game ------ Seed AmyLove Manual? 1 Play Time 00:17:05 Cumulative 31.7 hours Start 2026.03.20 @ 22:02:08 End 2026.03.20 @ 22:27:09 Sessions 1 Manual Loads 0 Difficulty Rogue Special Mode Winter2019/RPGLIKE Game No. 20 Rogue 17 Adventurer 0 Explorer 3 Win Type - Total 3 Types 1/0/0/2/0/0/0/0/0/0 Lore% 17 Gallery% 25 Achievement% 31 Wizard Run 0 Options --------- Layout 0 ASCII 0 Keyboard 1 Movement Numpad Keybinds 0 Fullscreen 1 Font 20/Smallcaps Map View 66x50 Zoom Use 0% Tactical HUD 1 Map Filters NONE Filters NONE Steam 1 RUN: 74a4d3b5-069d-4d24-ac68-25b449eead85